Cogmind - Beta 10.2 @@@ ROGUE MODE // 2020.10.31 @ 16:47:14 // Halloween2020/ForbiddenLore Player: Trione Result: Destroyed by G-34 Mercenary with Small Laser Performance ------------- Evolutions (0) 0 Regions Visited (1) 200 Robots Destroyed (7) 35 Value Destroyed (157) 157 Prototype IDs (0) 0 Alien Tech Used (0) 0 Bonus (0) 0 TOTAL SCORE: 392 Bonus ------- None Cogmind --------- Core Integrity 0/250 Matter 300/300 Energy 100/100 System Corruption 0% Temperature Cool (6) Movement Core (100) Ox1 Location -10/Materials Parts ------- > --- POWER (1) -------- (None) > --- PROPULSION (2) --- (None) > --- UTILITY (2) ------ Small Storage Unit > --- WEAPON (2) ------- (None) > --- INVENTORY (6) ---- Compact Wheel Peak State ------------ > --- POWER ------------ Ion Engine > --- PROPULSION ------- Compact Wheel Compact Wheel > --- UTILITY ---------- Small Storage Unit > --- WEAPON ----------- EM Pulse Gun Assault Rifle > --- INVENTORY -------- Ion Engine Light Treads Light Treads Small Laser [Rating: 6] Favorites ----------- Power Ion Engine Engine Ion Engine Propulsion Compact Wheel Treads Light Treads Wheel Compact Wheel Utility Small Storage Unit Storage Small Storage Unit Weapon Assault Rifle Energy Gun EM Pulse Gun Ballistic Gun Assault Rifle Build | -11 -10 ------- Run | Scr Mat Slots Evolved . | . . Power . | . . Propulsion . | . . Utility . | . . Weapon . | . . Parts Attached 11 | 7 4 Power 2 | 1 1 Engine 2 | 1 1 Core . | . . Reactor . | . . Propulsion 4 | 2 2 Treads 2 | . 2 Leg . | . . Wheel 2 | 2 . Hover . | . . Flight . | . . Utility 1 | 1 . Device . | . . Storage 1 | 1 . Processor . | . . Hackware . | . . Protection . | . . Artifact . | . . Weapon 4 | 3 1 Energy Gun 3 | 2 1 Energy Cannon . | . . Ballistic Gun 1 | 1 . Ballistic Cannon . | . . Launcher . | . . Special Weapon . | . . Impact Weapon . | . . Slashing Weapon . | . . Piercing Weapon . | . . Special Melee Weapon . | . . Unidentified Prototypes . | . . Parts Lost 8 | . 8 Power 2 | . 2 Propulsion 3 | . 3 Utility . | . . Weapon 3 | . 3 Highest Loss Streak 5 | . 5 Average Slot Usage (%) 75 | . 75 Engine 13 | . 13 Treads 5 | . 5 Wheel 21 | . 21 Storage 14 | . 14 Energy Gun 8 | . 8 Ballistic Gun 11 | . 11 Naked Turns . | . . Heaviest Build 13 | 13 13 Greatest Support 40 | 32 40 Greatest Overweight (x) 1 | . 1 Average Overweight (x) . | . . Largest Inventory Capacity 6 | 6 6 Average Capacity 5 | 4 6 Most Carried 4 | 4 4 Average Carried 2 | 2 3 Final Capacity 6 | 6 6 Final Carried 4 | 4 1 Class Distribution -------------------- 100% | Mutant Dominant Class ---------------- Mutant | -10/Materials Resources | -11 -10 ----------- Run | Scr Mat Matter Collected 355 | 276 79 Remotely . | . . Salvage Created 259 | 86 173 Parts 14 | 2 12 Haulers Intercepted . | . . Recyclers Shooed . | . . Parts Field Recycled . | . . Retrieved Matter . | . . Parts Self-Destructed . | . . Prevented . | . . Kills | -11 -10 ------- Run | Scr Mat Combat Hostiles Destroyed 5 | . 5 Melee 1 | . 1 Guns 4 | . 4 Classes Destroyed 4 | 1 3 Recycler 1 | 1 . Watcher 1 | . 1 Swarmer 2 | . 2 Grunt 3 | . 3 Best Kill Streak 3 | 1 3 Combat Bots Only 2 | . 2 Max Kills in Single Turn 1 | 1 1 Gunslinging . | . . Exploded . | . . Melee 1 | . 1 Uniques/NPCs Destroyed . | . . Combat | -11 -10 -------- Run | Scr Mat Damage Taken 992 | 19 973 Core 252 | . 252 Absorbed by Shields . | . . Core Remaining (%) 100 | 100 . Volleys Fired 33 | 2 31 Largest 2 | 2 2 Hottest 60 | 60 60 Shots Fired 48 | 4 44 Gun 48 | 4 44 Cannon . | . . Launcher . | . . Special . | . . Kinetic 33 | 2 31 Thermal 6 | . 6 Explosive . | . . Electromagnetic 9 | 2 7 Robot Hit Streak 7 | 4 7 Robot Miss Streak 3 | . 3 Penetration Max . | . . Secondary Targets . | . . Shots Hit Robots 32 | 4 28 Core Hits 17 | 2 15 Critical Hits . | . . Critical Kills . | . . Critical Parts Destroyed . | . . Melee Attacks . | . . Impact . | . . Slashing . | . . Piercing . | . . Sneak Attacks . | . . Combat Hostiles . | . . Follow-up Attacks . | . . Damage Inflicted 423 | 76 347 Guns 375 | 48 327 Cannons . | . . Explosions 28 | 28 . Melee . | . . Ramming 20 | . 20 Kinetic 263 | 24 239 Thermal 72 | 28 44 Explosive . | . . Electromagnetic 68 | 24 44 Impact . | . . Slashing . | . . Piercing . | . . Highest Corruption . | . . Average Corruption . | . . Corruption Purged . | . . Overload Shots . | . . Overflow Damage . | . . Projectiles . | . . Explosions . | . . Melee . | . . Knockbacks 1 | . 1 Impact 1 | . 1 Kinetic . | . . Secondary . | . . Self-Inflicted Damage 19 | 19 . Shots 1 | 1 . Rammed 15 | . 15 Targets Rammed 16 | . 16 Kicked . | . . Crushed 1 | . 1 Highest Temperature 72 | 12 72 Average Temperature 26 | 12 29 Received Heat Transfer 504 | . 504 Siege Activations . | . . Robots Corrupted . | . . Combat Hostiles . | . . Parts Fried . | . . Impact Corruptions . | . . Robots Melted . | . . Combat Hostiles . | . . Parts Melted . | . . Heat Transferred 150 | 50 100 Parts Sabotaged . | . . Parts Stolen . | . . Parts Stripped . | . . Power Chain Reactions 1 | 1 . Missiles Intercepted . | . . Alert | -11 -10 ------- Run | Scr Mat Peak Influence 360 | 5 360 Initial 3 | . 3 Average 134 | 2 184 Maximum Alert Level 1 | . 1 Low Security (%) 59 | 100 44 Level 1 40 | . 55 Level 2 . | . . Level 3 . | . . Level 4 . | . . Level 5 . | . . High Security . | . . Max Security . | . . Squads Dispatched 2 | . 2 Investigation . | . . Extermination . | . . Reinforcement 2 | . 2 Assault . | . . Garrison . | . . Intercept . | . . Construction Impeded . | . . Haulers Reinforced . | . . Stealth | -11 -10 --------- Run | Scr Mat Distress Signals 3 | . 3 Communications Jammed . | . . Distress Signals . | . . Times Spotted 23 | . 23 Peak Tracking Total 8 | . 8 Tactical Retreats 3 | . 3 Traps | -11 -10 ------- Run | Scr Mat Traps Triggered 1 | . 1 Indirectly . | . . Trap Hack Attempts . | . . Triggered . | . . Disarmed . | . . Reprogrammed . | . . Reused . | . . Traps Extracted . | . . Installed . | . . Triggered . | . . Machines | -11 -10 ---------- Run | Scr Mat Machines Disabled . | . . Max in Single Turn . | . . Machines Sabotaged . | . . Garrisons Compromised . | . . Overloaded Fab Kills . | . . Fab Network Shutdowns . | . . Hacking | -11 -10 --------- Run | Scr Mat Machines Accessed . | . . Terminals . | . . Fabricators . | . . Repair Stations . | . . Recycling Units . | . . Scanalyzers . | . . Garrison Access . | . . Total Hacks . | . . Successful . | . . Failed . | . . Catastrophic . | . . Database Lockouts . | . . Manual . | . . Terminals . | . . Fabricators . | . . Repair Stations . | . . Recycling Units . | . . Scanalyzers . | . . Garrison Access . | . . Terminal Hacks . | . . Fabricator Hacks . | . . Repair Station Hacks . | . . Recycling Unit Hacks . | . . Scanalyzer . | . . Garrison Access Hacks . | . . Unauthorized Hacks . | . . Terminals . | . . Fabricators . | . . Repair Stations . | . . Recycling Units . | . . Scanalyzers . | . . Garrison Access . | . . Data Cores Recovered . | . . Used . | . . Hacking Detections . | . . Full Trace Events . | . . Feedback Events . | . . Feedback Blocked . | . . Robot Schematics Acquired . | . . Robots Built . | . . Matter . | . . Time . | . . Total Robot Build Rating . | . . Part Schematics Acquired . | . . Parts Built . | . . Matter . | . . Time . | . . Total Part Build Rating . | . . Parts Repaired . | . . Time . | . . Parts Recycled . | . . Recycled Matter . | . . Retrieved Matter . | . . Retrieved Components . | . . Parts Scanalyzed . | . . Part Schematics Acquired . | . . Parts Damaged . | . . Bothacking | -11 -10 ------------ Run | Scr Mat Used RIF Installer . | . . Robots Hacked . | . . Non-combat . | . . Combat . | . . Robot Hacks Applied . | . . Relay Couplers Released . | . . Robots Rewired . | . . Allies Hacked . | . . Hacks Repelled . | . . Allies | -11 -10 -------- Run | Scr Mat Total Allies . | . . Largest Group . | . . Highest-Rated Group . | . . Highest-Rated Ally . | . . Total Orders . | . . Ally Attacks . | . . Total Damage . | . . Kills . | . . Allies Corrupted . | . . Allies Melted . | . . Intel | -11 -10 ------- Run | Scr Mat Robot Analysis Total . | . . Derelict Logs Recovered . | . . Drone Launches . | . . Drone Recoveries . | . . Exploration | -11 -10 ------------- Run | Scr Mat Turns Passed 295 | 80 215 Spaces Moved 168 | 62 106 Core 3 | 1 2 Treads 8 | . 8 Legs . | . . Wheels 157 | 61 96 Hover . | . . Flight . | . . Fastest Speed 50 | 50 100 Average Speed 102 | 99 104 Slowest Speed 160 | 100 160 Overloaded Moves . | . . Propulsion Burnouts . | . . Robots Hopped . | . . Cave-ins Triggered . | . . Exploration Rate (%) 14 | 5 24 Regions Visited 1 Branch Regions . Pre-discovered Areas . | . . Known Exits Taken . | . . Unknown Exits Taken 1 | 1 . Scrap Searched . | . . Spaces Dug . | . . Terrain Destroyed . | . . Melee . | . . Projectile . | . . AOE . | . . Terrain Rammed . | . . Walls Destroyed . | . . Machines Disabled . | . . Actions | -11 -10 --------- Run | Scr Mat Total 230 | 73 157 Wait . | . . Move 167 | 61 106 Hop . | . . Pick Up 3 | 3 . Fast Attach 6 | 6 . Attach 3 | . 3 Detach . | . . Swap 2 | 1 1 Drop . | . . Fire 33 | 2 31 Melee . | . . Ram 2 | . 2 Kick . | . . Crush 14 | . 14 Escape Stasis . | . . Rewire . | . . Trap . | . . Miscellaneous . | . . Route ------- -11/Scrapyard -10/Materials History --------- Turn | Location | Event 16 | -11/Scrapyard | Discovered new exit (range 15) 81 | -11/Scrapyard | Entered Materials 256 | -10/Materials | Core integrity fell below 50% 284 | -10/Materials | Lost 5 parts (1p1n3w) 288 | -10/Materials | Core integrity fell below 20% 296 | -10/Materials | Destroyed by G-34 Mercenary with Small Laser Last Messages --------------- 00268_ R-06 Scavenger collects Aluminum Leg. 00275_ K-01 Serf collects debris. 00276_ Slammed into G-47 Trooper. 00276_ K-01 Serf collects debris. 00281_ Slammed into G-47 Trooper. 00284_ Crushed G-47 Trooper. 00284_ G-47 Trooper destroyed. 00285_ Acquired 29 matter. 00285_ K-01 Serf collects debris. 00286_ Slammed into G-34 Mercenary. 00288_ K-01 Serf collects debris. 00289_ Slammed into G-34 Mercenary. 00289_ G-34 Mercenary knocked back. 00290_ Ion Engine destroyed. 00290_ Lgt. Treads destroyed. 00291_ Slammed into G-34 Mercenary. 00292_ Lgt. Treads destroyed. 00292_ Slammed into G-34 Mercenary. 00293_ K-01 Serf collects debris. 00293_ Slammed into G-34 Mercenary. Map ----- +----------------------------------------------------+ | ????????????" ?????????????????????????????????? | | ????????????? #????????????????????????????????? | | ????????????? ????????????????????????????????? | | ????????????? ????????????????????????????????? | | ????????????? ????????????????????????????????? | | ????????????? ????????????????????????????????? | | ?????????????# #????????????????????????????????? | | ?????????????# #????????????????????????????????? | | ?###?????????# #????????????????????????????????? | | ? ?????????+ #????????????????????????????????? | | ? ?????????# +????????????????????????????????? | | "" ?????????# #????????????????????????????????? | | "" #????????# #????????????????????????????????? | | "" #????????+ *#?????????+####??+##?????????????? | | #????????##=#????????? ! #?????????????? | | #?????????#%#????????? +?????????????? | | #?????????#!#????????""" """ #?????????????? | | #?????????#=#?????????"" """ #?????????????? | | #?????????# #??????????" """ ???????????????? | | ? #?????????# #?????????? ????????????????? | | ###+########### #??????????? =?????????????????? | | #############/##?????????????????? | | %= = #########?????????? | | ##############%% # #?????????? | | ##### ########????# T g#% %# #?????????? | | ????# #???????????# !@%+ /% #?????????? | | ????# #???????????# # #% #?????????? | | ????# #???????????######### # % #?????????? | | ????# #???#######?????????# #########?????????? | | ????# #??? #????????"" #?????????????????? | | ????# #?? #???????#T #?????????????????? | | ????# #?? #???????### #?????????????????? | | ????# #? ! #?????????# +?????????????????? | | ????# #? #?????????# #?????????????????? | | ??# # #?????????# #?????????????????? | | # # #?????????T #?????????????????? | | + + #?????????# #?????????????????? | | # #########???????????# #?????????????????? | | ###?# #???? #????????????# #?????????????????? | | # #??"" #????????????? ??????????????????? | | """ # # """ "#??????????????????????????????????? | | "Y" / / """ T#??????????????????????????????????? | | # # "#??????????????????????????????????? | | # # ! #??????????????????????????????????? | | ?####?######??????????????????????????????????? | | ###??????????????????????????????????????????????? | | ?????????????????????????????????????????????????? | | ?????????????????????????????????????????????????? | | ?????????????????????????????????????????????????? | | ?????????????????????????????????????????????????? | +----------------------------------------------------+ Best States ------------- Heat Dissipation 25 Energy Generation 10 Energy Capacity 250 Matter Stores 300 Matter Capacity 300 Sight Range 16 Terrain Scan Density 10 Evasion (%) 40 Recoil Reduction 2 Item Schematics ----------------- None Robot Schematics ------------------ None Fabricated ------------ Nothing Alien Tech Used ----------------- None Achievements -------------- None Challenges ------------ None Game ------ Seed VisualCentriumHammer Manual? 0 Play Time 00:04:16 Cumulative 1164.8 hours Start 2020.10.31 @ 16:44:13 End 2020.10.31 @ 16:47:14 Sessions 1 Manual Loads 0 Difficulty Rogue Special Mode Halloween2020/ForbiddenLore Game No. 428 Rogue 428 Adventurer 0 Explorer 0 Win Type - Total 26 Types 13/2/7/0/0/0/4/0/0 Lore% 96 Gallery% 96 Achievement% 84 Wizard Run 0 Options --------- ASCII 0 Keyboard 0 Movement Vi Keybinds 0 Fullscreen 0 Font 12/Crisp Map View 76x50 Tactical HUD 1 Map Filters NONE Filters NONE Steam 1 RUN: 14f641d2-e244-44f0-9698-6ee31c0e0c2b